[Event "27th OIBM 2024"]
[Site "Gmund am Tegernsee"]
[Date "2024.10.28"]
[Round "3.22"]
[White "Tan, Yi Rui Ray"]
[Black "Tscharotschkin, Michael"]
[Result "1/2-1/2"]
[ECO "C18"]
[WhiteElo "1951"]
[BlackElo "2079"]
[Annotator "RC"]
[PlyCount "62"]
[EventDate "2024.09.16"]
[EventType "swiss"]
[EventCountry "GER"]
[SourceTitle "playchess.com"]
[Source "ChessBase"]
[SourceQuality "1"]
[TimeControl "40/5400+30:1800+30"]

1. e4 {[%emt 0:00:03]} e6 {[%emt 0:00:08]} 2. d4 {[%emt 0:00:02]} d5 {[%emt 0:00:06]} 3. Nc3 {[%emt 0:00:04]} Bb4 {[%emt 0:00:06]} 4. e5 {[%emt 0:00:03]} c5 {[%emt 0:00:05]} 5. a3 {[%emt 0:00:04]} Bxc3+ {[%emt 0:00:04]} 6. bxc3 {[%emt 0:00:08]} Ne7 {[%emt 0:00:08]} 7. Qg4 {[%emt 0:00:13]} Qc7 {[%emt 0:00:06]} 8. Qxg7 {[%emt 0:00:14]} Rg8 {[%emt 0:00:05]} 9. Qxh7 {[%emt 0:00:03]} cxd4 {[%emt 0:00:06]} 10. Ne2 {[%emt 0:00:22]} Nbc6 {[%emt 0:00:41]} 11. f4 {[%emt 0:00:08]} dxc3 {[%emt 0:00:11]} 12. h4 {[%emt 0:04:08]} Bd7 {[%emt 0:00:23]} 13. h5 {[%emt 0:00:46]} O-O-O {[%emt 0:01:04]} 14. Qd3 {[%emt 0:00:15]} d4 {[%emt 0:00:46]} 15. h6 {[%emt 0:08:39]} Rg6 {[%emt 0:00:46]} 16. h7 {[%emt 0:03:19]} Rh8 {[%emt 0:00:15]} 17. Nxd4 {[%emt 0:05:14]} Nxd4 {[%emt 0:17:46]} 18. Qxd4 {[%emt 0:00:05]} Bc6 {[%emt 0:13:24]} 19. Bd3 {[%emt 0:33:49]} Rxg2 {[%emt 0:01:15]} 20. Be3 {[%emt 0:12:33]} Rg7 {[%emt 0:15:56]} 21. Rf1 {[%emt 0:04:33]} b6 {[%emt 0:09:32]} 22. Qxc3 {[%emt 0:06:21]} Nd5 {[%emt 0:08:29]} 23. Qd2 {[%emt 0:04:25]} Qe7 {[%emt 0:01:00]} 24. Bd4 {[%emt 0:05:45]} Qh4+ {[%emt 0:01:38]} 25. Qf2 {[%emt 0:01:44]} Nxf4 {[%emt 0:00:17]} 26. Qxh4 {[%emt 0:01:22]} Ng2+ {[%emt 0:00:06]} 27. Ke2 {[%emt 0:00:17]} Nxh4 {[%emt 0:00:14]} 28. Rf2 {[%emt 0:05:22]} Ng6 {[%emt 0:07:33]} 29. Rg1 {[%emt 0:00:39]} Be8 {[%emt 0:01:52]} 30. Rf6 {[%emt 0:01:39]} Rhxh7 {[%emt 0:07:47]} 31. Bxg6 {[%emt 0:00:43]} Rxg6 {[%emt 0:04:19]} 1/2-1/2

[Event "27th OIBM 2024"]
[Site "Gmund am Tegernsee"]
[Date "2024.10.28"]
[Round "3.23"]
[White "Scheckenbach, Franz"]
[Black "Hofbauer, Karl"]
[Result "1-0"]
[ECO "A04"]
[WhiteElo "2076"]
[BlackElo "1950"]
[Annotator "RC"]
[PlyCount "93"]
[EventDate "2024.09.16"]
[EventType "swiss"]
[EventCountry "GER"]
[SourceTitle "playchess.com"]
[Source "ChessBase"]
[SourceQuality "1"]
[TimeControl "40/5400+30:1800+30"]

1. e4 {[%emt 0:00:04]} c5 {[%emt 0:00:54]} 2. Nf3 {[%emt 0:00:18]} e6 {[%emt 0:00:19]} 3. d3 {[%emt 0:00:23]} Nc6 {[%emt 0:01:02]} 4. g3 {[%emt 0:00:15]} d6 {[%emt 0:05:37]} 5. Bg2 {[%emt 0:00:08]} g6 {[%emt 0:00:35]} 6. O-O {[%emt 0:00:41]} Bg7 {[%emt 0:00:25]} 7. Re1 {[%emt 0:00:54]} Nge7 {[%emt 0:01:00]} 8. c3 {[%emt 0:00:40]} e5 {[%emt 0:01:26]} 9. Be3 {[%emt 0:03:09]} O-O {[%emt 0:00:56]} 10. Qc1 {[%emt 0:02:01]} Bd7 {[%emt 0:02:30]} 11. Nbd2 {[%emt 0:02:02]} b5 {[%emt 0:01:38]} 12. Nf1 {[%emt 0:02:15]} b4 {[%emt 0:05:40]} 13. Bh6 {[%emt 0:01:24]} bxc3 {[%emt 0:02:28]} 14. bxc3 {[%emt 0:00:07]} Rb8 {[%emt 0:01:12]} 15. Bxg7 {[%emt 0:00:18]} Kxg7 {[%emt 0:00:44]} 16. Ne3 {[%emt 0:02:05]} h6 {[%emt 0:08:35]} 17. Nc4 {[%emt 0:06:48]} Be6 {[%emt 0:06:39]} 18. Nfd2 {[%emt 0:05:02]} g5 {[%emt 0:03:47]} 19. Ne3 {[%emt 0:00:52]} Na5 {[%emt 0:54:33]} 20. Qc2 {[%emt 0:04:29]} Qc7 {[%emt 0:00:00]} 21. Ndc4 {[%emt 0:14:51]} Bd7 {[%emt 0:00:00]} 22. Qe2 {[%emt 0:07:43]} f6 {[%emt 0:00:00]} 23. Bf3 {[%emt 0:02:58]} Nac6 {[%emt 0:00:00]} 24. Bg4 {[%emt 0:00:51]} f5 {[%emt 0:00:00]} 25. Nxf5+ {[%emt 0:04:20]} Nxf5 {[%emt 0:00:00]} 26. Bxf5 {[%emt 0:00:41]} Bxf5 {[%emt 0:00:00]} 27. exf5 {[%emt 0:00:06]} Rxf5 {[%emt 0:00:00]} 28. Ne3 {[%emt 0:00:52]} Rff8 {[%emt 0:00:00]} 29. Rab1 {[%emt 0:02:31]} Qf7 {[%emt 0:00:00]} 30. Rxb8 {[%emt 0:10:21]} Rxb8 {[%emt 0:00:00]} 31. h4 {[%emt 0:03:15]} Rf8 {[%emt 0:00:00]} 32. hxg5 {[%emt 0:00:28]} hxg5 {[%emt 0:00:00]} 33. Kg2 {[%emt 0:01:45]} Ne7 {[%emt 0:00:00]} 34. Ng4 {[%emt 0:04:18]} Qd5+ {[%emt 0:01:44]} 35. f3 {[%emt 0:02:02]} Rh8 {[%emt 0:01:55]} 36. c4 {[%emt 0:08:19]} Qe6 {[%emt 0:00:18]} 37. Rb1 {[%emt 0:00:37]} Rf8 {[%emt 0:03:34]} 38. Rb7 {[%emt 0:02:27]} a5 {[%emt 0:00:06]} 39. Qd2 {[%emt 0:02:46]} Kg6 {[%emt 0:01:00]} 40. Qe3 {[%emt 0:02:43]} Rf7 {[%emt 0:00:47]} 41. Qe4+ {[%emt 0:31:50]} Qf5 {[%emt 0:03:19]} 42. Rb6 {[%emt 0:00:00]} Kg7 {[%emt 0:03:37]} 43. Rxd6 {[%emt 0:00:00]} Qxe4 {[%emt 0:00:56]} 44. dxe4 {[%emt 0:00:00]} Ng6 {[%emt 0:01:09]} 45. Rxg6+ {[%emt 0:00:00]} Kxg6 {[%emt 0:01:16]} 46. Nxe5+ {[%emt 0:00:00]} Kf6 {[%emt 0:00:42]} 47. Nxf7 {[%emt 0:00:00]} 1-0

[Event "27th OIBM 2024"]
[Site "Gmund am Tegernsee"]
[Date "2024.10.28"]
[Round "3.24"]
[White "Basener, Winfried"]
[Black "Kick, Joachim"]
[Result "1/2-1/2"]
[ECO "C89"]
[WhiteElo "1949"]
[BlackElo "2073"]
[Annotator "RC"]
[PlyCount "79"]
[EventDate "2024.09.16"]
[EventType "swiss"]
[EventCountry "GER"]
[SourceTitle "playchess.com"]
[Source "ChessBase"]
[SourceQuality "1"]
[TimeControl "40/5400+30:1800+30"]

1. e4 {[%emt 0:00:03]} e5 {[%emt 0:00:06]} 2. Nf3 {[%emt 0:00:08]} Nc6 {[%emt 0:00:05]} 3. Bb5 {[%emt 0:00:10]} a6 {[%emt 0:00:10]} 4. Ba4 {[%emt 0:00:12]} Nf6 {[%emt 0:00:07]} 5. O-O {[%emt 0:00:37]} Be7 {[%emt 0:00:54]} 6. Re1 {[%emt 0:00:42]} b5 {[%emt 0:00:24]} 7. Bb3 {[%emt 0:00:08]} O-O {[%emt 0:00:33]} 8. c3 {[%emt 0:01:24]} d5 {[%emt 0:00:43]} 9. exd5 {[%emt 0:01:22]} Nxd5 {[%emt 0:00:07]} 10. Nxe5 {[%emt 0:00:20]} Nxe5 {[%emt 0:00:06]} 11. Rxe5 {[%emt 0:00:13]} c6 {[%emt 0:00:38]} 12. d4 {[%emt 0:24:04]} Bd6 {[%emt 0:00:35]} 13. Re1 {[%emt 0:00:19]} Qh4 {[%emt 0:00:12]} 14. g3 {[%emt 0:00:26]} Qh3 {[%emt 0:00:06]} 15. Qd3 {[%emt 0:02:42]} Bg4 {[%emt 0:17:47]} 16. Bd2 {[%emt 0:32:17]} Rae8 {[%emt 0:05:03]} 17. Na3 {[%emt 0:00:32]} Nf4 {[%emt 0:08:05]} 18. Bxf4 {[%emt 0:02:05]} Bxf4 {[%emt 0:00:08]} 19. Bc2 {[%emt 0:06:00]} Bd6 {[%emt 0:06:58]} 20. Qf1 {[%emt 0:00:53]} c5 {[%emt 0:16:12]} 21. Qxh3 {[%emt 0:01:21]} Bxh3 {[%emt 0:00:07]} 22. Be4 {[%emt 0:04:46]} cxd4 {[%emt 0:05:26]} 23. cxd4 {[%emt 0:00:19]} Bb4 {[%emt 0:00:21]} 24. Re3 {[%emt 0:06:19]} Bd2 {[%emt 0:06:18]} 25. Re2 {[%emt 0:02:04]} Ba5 {[%emt 0:06:44]} 26. Bf3 {[%emt 0:04:05]} Rxe2 {[%emt 0:11:48]} 27. Bxe2 {[%emt 0:10:29]} Rd8 {[%emt 0:00:21]} 28. Rd1 {[%emt 0:00:00]} Be6 {[%emt 0:00:51]} 29. b3 {[%emt 0:00:00]} Bf5 {[%emt 0:04:25]} 30. g4 {[%emt 0:00:00]} Bg6 {[%emt 0:03:08]} 31. f4 {[%emt 0:00:00]} Be4 {[%emt 0:00:12]} 32. d5 {[%emt 0:00:00]} Bb4 {[%emt 0:02:56]} 33. Nb1 {[%emt 0:00:26]} Rxd5 {[%emt 0:01:31]} 34. Rxd5 {[%emt 0:00:28]} Bxd5 {[%emt 0:00:06]} 35. Bd3 {[%emt 0:00:44]} h6 {[%emt 0:01:16]} 36. Kf2 {[%emt 0:00:25]} Bd6 {[%emt 0:00:37]} 37. Ke3 {[%emt 0:00:18]} Bc5+ {[%emt 0:00:06]} 38. Ke2 {[%emt 0:00:18]} Kf8 {[%emt 0:01:27]} 39. Nc3 {[%emt 0:00:15]} Bc6 {[%emt 0:00:44]} 40. Be4 {[%emt 0:00:14]} 1/2-1/2

[Event "27th OIBM 2024"]
[Site "Gmund am Tegernsee"]
[Date "2024.10.28"]
[Round "3.25"]
[White "Hoeller, Armin"]
[Black "Schmidt, Gerhard"]
[Result "0-1"]
[ECO "A24"]
[WhiteElo "1947"]
[BlackElo "2087"]
[Annotator "RC"]
[PlyCount "68"]
[EventDate "2024.09.16"]
[EventType "swiss"]
[EventCountry "GER"]
[SourceTitle "playchess.com"]
[Source "ChessBase"]
[SourceQuality "1"]
[TimeControl "40/5400+30:1800+30"]

1. c4 {[%emt 0:00:04]} Nf6 {[%emt 0:00:11]} 2. Nc3 {[%emt 0:00:38]} g6 {[%emt 0:00:12]} 3. g3 {[%emt 0:00:28]} Bg7 {[%emt 0:00:13]} 4. Bg2 {[%emt 0:00:24]} O-O {[%emt 0:00:23]} 5. Nf3 {[%emt 0:01:49]} d6 {[%emt 0:00:25]} 6. O-O {[%emt 0:01:18]} e5 {[%emt 0:00:25]} 7. d3 {[%emt 0:00:46]} a5 {[%emt 0:00:50]} 8. Rb1 {[%emt 0:02:54]} c6 {[%emt 0:00:52]} 9. a3 {[%emt 0:01:46]} Re8 {[%emt 0:00:45]} 10. e4 {[%emt 0:02:53]} Na6 {[%emt 0:01:13]} 11. b4 {[%emt 0:01:29]} axb4 {[%emt 0:00:20]} 12. axb4 {[%emt 0:00:13]} Nc7 {[%emt 0:01:00]} 13. b5 {[%emt 0:11:47]} Ne6 {[%emt 0:00:50]} 14. h3 {[%emt 0:06:01]} Qe7 {[%emt 0:06:24]} 15. Na4 {[%emt 0:12:20]} Nd7 {[%emt 0:00:58]} 16. bxc6 {[%emt 0:10:07]} bxc6 {[%emt 0:00:15]} 17. Nh4 {[%emt 0:01:26]} Ra6 {[%emt 0:08:49]} 18. Be3 {[%emt 0:02:18]} Rf8 {[%emt 0:06:54]} 19. Nb6 {[%emt 0:19:27]} Nxb6 {[%emt 0:00:58]} 20. Rxb6 {[%emt 0:00:29]} Rxb6 {[%emt 0:00:49]} 21. Bxb6 {[%emt 0:00:04]} Bd7 {[%emt 0:36:37]} 22. Ba5 {[%emt 0:03:31]} Bh6 {[%emt 0:07:06]} 23. Kh2 {[%emt 0:04:06]} Nd4 {[%emt 0:06:07]} 24. Nf3 {[%emt 0:01:24]} Nxf3+ {[%emt 0:00:52]} 25. Bxf3 {[%emt 0:00:41]} Ra8 {[%emt 0:03:41]} 26. Bd2 {[%emt 0:01:16]} Bxd2 {[%emt 0:03:37]} 27. Qxd2 {[%emt 0:00:02]} Kg7 {[%emt 0:00:25]} 28. Rb1 {[%emt 0:02:11]} Be6 {[%emt 0:01:03]} 29. Bg2 {[%emt 0:01:10]} Qa7 {[%emt 0:01:36]} 30. f4 {[%emt 0:03:51]} Qd4 {[%emt 0:00:48]} 31. f5 {[%emt 0:02:35]} Bxc4 {[%emt 0:03:35]} 32. Rf1 {[%emt 0:02:56]} f6 {[%emt 0:00:40]} 33. Qb4 {[%emt 0:01:10]} Bf7 {[%emt 0:00:53]} 34. fxg6 {[%emt 0:01:48]} Qxb4 {[%emt 0:00:14]} 0-1

[Event "27th OIBM 2024"]
[Site "Gmund am Tegernsee"]
[Date "2024.10.28"]
[Round "3.26"]
[White "Schwan, Aaron"]
[Black "Dietze, Frank"]
[Result "0-1"]
[ECO "B30"]
[WhiteElo "1946"]
[BlackElo "2101"]
[Annotator "RC"]
[PlyCount "84"]
[EventDate "2024.09.16"]
[EventType "swiss"]
[EventCountry "GER"]
[SourceTitle "playchess.com"]
[Source "ChessBase"]
[SourceQuality "1"]
[TimeControl "40/5400+30:1800+30"]

1. e4 {[%emt 0:00:02]} c5 {[%emt 0:00:09]} 2. Nf3 {[%emt 0:00:07]} Nc6 {[%emt 0:00:25]} 3. Bb5 {[%emt 0:00:11]} e5 {[%emt 0:00:17]} 4. O-O {[%emt 0:02:41]} Bd6 {[%emt 0:00:18]} 5. c3 {[%emt 0:04:27]} a6 {[%emt 0:00:31]} 6. Bxc6 {[%emt 0:02:38]} dxc6 {[%emt 0:00:10]} 7. d4 {[%emt 0:00:45]} cxd4 {[%emt 0:06:54]} 8. cxd4 {[%emt 0:00:25]} exd4 {[%emt 0:00:18]} 9. Qxd4 {[%emt 0:00:45]} Bf8 {[%emt 0:02:52]} 10. Qa4 {[%emt 0:12:49]} Qc7 {[%emt 0:04:12]} 11. Nc3 {[%emt 0:03:13]} Ne7 {[%emt 0:11:35]} 12. Nd5 {[%emt 0:23:43]} Qd8 {[%emt 0:00:02]} 13. Bf4 {[%emt 0:04:08]} b5 {[%emt 0:00:04]} 14. Qc2 {[%emt 0:06:03]} cxd5 {[%emt 0:01:28]} 15. Bc7 {[%emt 0:03:34]} Qd7 {[%emt 0:00:01]} 16. Ne5 {[%emt 0:00:55]} Qe6 {[%emt 0:00:45]} 17. exd5 {[%emt 0:02:13]} Qf5 {[%emt 0:00:42]} 18. Qc5 {[%emt 0:01:40]} f6 {[%emt 0:04:44]} 19. d6 {[%emt 0:04:12]} Qe6 {[%emt 0:18:34]} 20. Nf3 {[%emt 0:10:18]} Qd5 {[%emt 0:03:37]} 21. Qe3 {[%emt 0:00:17]} Kf7 {[%emt 0:00:06]} 22. dxe7 {[%emt 0:00:20]} Bxe7 {[%emt 0:00:34]} 23. Rfe1 {[%emt 0:01:31]} Bc5 {[%emt 0:00:52]} 24. Qf4 {[%emt 0:00:50]} Ra7 {[%emt 0:04:49]} 25. Rad1 {[%emt 0:00:59]} Bxf2+ {[%emt 0:00:22]} 26. Kh1 {[%emt 0:04:11]} Qf5 {[%emt 0:00:34]} 27. Ne5+ {[%emt 0:03:01]} fxe5 {[%emt 0:00:29]} 28. Qxf5+ {[%emt 0:03:24]} Bxf5 {[%emt 0:00:03]} 29. Rxe5 {[%emt 0:01:20]} g6 {[%emt 0:01:47]} 30. Ba5 {[%emt 0:00:51]} Re7 {[%emt 0:01:07]} 31. Red5 {[%emt 0:01:22]} Rhe8 {[%emt 0:01:30]} 32. Rd6 {[%emt 0:01:16]} Bc5 {[%emt 0:01:01]} 33. Rc6 {[%emt 0:00:14]} b4 {[%emt 0:00:16]} 34. h3 {[%emt 0:00:34]} Re1+ {[%emt 0:36:22]} 35. Rxe1 {[%emt 0:03:01]} Rxe1+ {[%emt 0:00:30]} 36. Kh2 Bg1+ {[%emt 0:00:00]} 37. Kg3 {[%emt 0:00:00]} Re3+ {[%emt 0:00:00]} 38. Kf4 {[%emt 0:00:00]} Re4+ {[%emt 0:00:00]} 39. Kf3 {[%emt 0:00:00]} Re5 {[%emt 0:00:00]} 40. Bd8 {[%emt 0:00:00]} Be4+ {[%emt 0:00:00]} 41. Kf4 {[%emt 0:29:27]} Bh2+ {[%emt 0:00:00]} 42. g3 {[%emt 0:00:01]} Bxg3+ {[%emt 0:33:30]} 0-1

[Event "27th OIBM 2024"]
[Site "Gmund am Tegernsee"]
[Date "2024.10.28"]
[Round "3.27"]
[White "Freundorfer, Josef"]
[Black "Groessing, Daniel-Yosuke"]
[Result "1-0"]
[ECO "B12"]
[WhiteElo "2072"]
[BlackElo "1936"]
[Annotator "RC"]
[PlyCount "83"]
[EventDate "2024.09.16"]
[EventType "swiss"]
[EventCountry "GER"]
[SourceTitle "playchess.com"]
[Source "ChessBase"]
[SourceQuality "1"]
[TimeControl "40/5400+30:1800+30"]

1. e4 {[%emt 0:00:02]} c6 {[%emt 0:00:14]} 2. d4 {[%emt 0:00:09]} d5 {[%emt 0:00:03]} 3. e5 {[%emt 0:00:10]} Bf5 {[%emt 0:00:22]} 4. h4 {[%emt 0:00:14]} h5 {[%emt 0:00:18]} 5. Bd3 {[%emt 0:00:12]} Bxd3 {[%emt 0:00:19]} 6. Qxd3 {[%emt 0:00:11]} e6 {[%emt 0:00:15]} 7. Bg5 {[%emt 0:00:13]} Qb6 {[%emt 0:00:30]} 8. Nd2 {[%emt 0:00:11]} c5 {[%emt 0:00:31]} 9. c4 {[%emt 0:00:14]} Qa6 {[%emt 0:01:27]} 10. Ngf3 {[%emt 0:04:51]} Nc6 {[%emt 0:03:55]} 11. O-O {[%emt 0:00:52]} Nge7 {[%emt 0:07:43]} 12. b3 {[%emt 0:10:34]} Nf5 {[%emt 0:05:31]} 13. Qb1 {[%emt 0:11:28]} dxc4 {[%emt 0:09:51]} 14. d5 {[%emt 0:03:52]} Ncd4 {[%emt 0:08:56]} 15. bxc4 {[%emt 0:01:25]} Nxf3+ {[%emt 0:10:03]} 16. Nxf3 {[%emt 0:02:37]} Qxc4 {[%emt 0:02:06]} 17. dxe6 {[%emt 0:06:26]} fxe6 {[%emt 0:03:39]} 18. Qxb7 {[%emt 0:01:32]} Qd5 {[%emt 0:00:09]} 19. Qa6 {[%emt 0:00:42]} Be7 {[%emt 0:04:18]} 20. Rad1 {[%emt 0:14:18]} Nd4 {[%emt 0:05:16]} 21. Nxd4 {[%emt 0:01:45]} cxd4 {[%emt 0:01:05]} 22. Qa4+ {[%emt 0:01:42]} Qd7 {[%emt 0:06:28]} 23. Qxd7+ {[%emt 0:00:41]} Kxd7 {[%emt 0:00:02]} 24. Rxd4+ {[%emt 0:00:13]} Ke8 {[%emt 0:00:03]} 25. Rc1 {[%emt 0:02:22]} Bxg5 {[%emt 0:00:27]} 26. hxg5 {[%emt 0:00:12]} Kf7 {[%emt 0:00:16]} 27. Rc7+ {[%emt 0:06:38]} Kg6 {[%emt 0:00:12]} 28. f4 {[%emt 0:01:25]} Rhc8 {[%emt 0:01:09]} 29. Rdd7 {[%emt 0:02:16]} Rxc7 {[%emt 0:00:54]} 30. Rxc7 {[%emt 0:00:09]} Kf5 {[%emt 0:00:20]} 31. Rf7+ {[%emt 0:00:26]} Kg4 {[%emt 0:02:50]} 32. Kf2 {[%emt 0:05:35]} h4 {[%emt 0:04:32]} 33. g6 {[%emt 0:06:43]} Rb8 {[%emt 0:04:46]} 34. Rxg7 {[%emt 0:02:34]} Rb2+ {[%emt 0:00:50]} 35. Ke3 {[%emt 0:00:46]} Rxg2 {[%emt 0:00:40]} 36. Rh7 {[%emt 0:00:57]} Kh3 {[%emt 0:02:20]} 37. f5 {[%emt 0:14:23]} Rg3+ {[%emt 0:10:52]} 38. Kf2 {[%emt 0:00:00]} Rg2+ {[%emt 0:02:19]} 39. Kf1 {[%emt 0:00:00]} exf5 {[%emt 0:00:27]} 40. g7 {[%emt 0:00:00]} Rg6 {[%emt 0:02:26]} 41. e6 {[%emt 0:22:18]} Kg3 {[%emt 0:30:32]} 42. e7 {[%emt 0:00:35]} 1-0

[Event "27th OIBM 2024"]
[Site "Gmund am Tegernsee"]
[Date "2024.10.28"]
[Round "3.28"]
[White "Rickert, Heiko"]
[Black "Ercan, Selman"]
[Result "0-1"]
[ECO "D02"]
[WhiteElo "1908"]
[BlackElo "2054"]
[Annotator "RC"]
[PlyCount "78"]
[EventDate "2024.09.16"]
[EventType "swiss"]
[EventCountry "GER"]
[SourceTitle "playchess.com"]
[Source "ChessBase"]
[SourceQuality "1"]
[TimeControl "40/5400+30:1800+30"]

1. d4 {[%emt 0:00:04]} d5 {[%emt 0:00:12]} 2. Nf3 {[%emt 0:00:12]} Nf6 {[%emt 0:00:20]} 3. c3 {[%emt 0:00:17]} c5 {[%emt 0:07:31]} 4. dxc5 {[%emt 0:00:48]} e6 {[%emt 0:00:26]} 5. b4 {[%emt 0:01:28]} a5 {[%emt 0:00:15]} 6. Bf4 {[%emt 0:14:30]} Nc6 {[%emt 0:15:00]} 7. b5 {[%emt 0:06:05]} Na7 {[%emt 0:02:51]} 8. b6 {[%emt 0:10:40]} Nc6 {[%emt 0:00:29]} 9. Bc7 {[%emt 0:00:59]} Qd7 {[%emt 0:00:16]} 10. e3 {[%emt 0:05:40]} Bxc5 {[%emt 0:01:06]} 11. Bb5 {[%emt 0:01:29]} Bd6 {[%emt 0:05:25]} 12. Ne5 {[%emt 0:01:26]} Bxe5 {[%emt 0:00:14]} 13. Bxe5 {[%emt 0:00:12]} Qe7 {[%emt 0:00:18]} 14. Qd4 {[%emt 0:11:14]} O-O {[%emt 0:04:36]} 15. Bxf6 {[%emt 0:06:56]} gxf6 {[%emt 0:00:47]} 16. Bxc6 {[%emt 0:07:44]} bxc6 {[%emt 0:00:14]} 17. O-O {[%emt 0:01:16]} Kh8 {[%emt 0:06:30]} 18. Nd2 {[%emt 0:02:54]} Rg8 {[%emt 0:01:56]} 19. Kh1 {[%emt 0:05:00]} c5 {[%emt 0:04:42]} 20. Qh4 {[%emt 0:01:07]} Bb7 {[%emt 0:02:07]} 21. f3 {[%emt 0:03:40]} Rg6 {[%emt 0:02:01]} 22. e4 {[%emt 0:02:05]} Qd6 {[%emt 0:05:43]} 23. exd5 {[%emt 0:04:46]} exd5 {[%emt 0:00:32]} 24. Rae1 {[%emt 0:03:09]} Rag8 {[%emt 0:04:52]} 25. Rf2 {[%emt 0:00:59]} Qxb6 {[%emt 0:11:31]} 26. Re7 {[%emt 0:02:15]} Kg7 {[%emt 0:00:49]} 27. Rfe2 {[%emt 0:00:53]} Bc6 {[%emt 0:07:30]} 28. a4 {[%emt 0:04:03]} Rd8 {[%emt 0:01:40]} 29. Nf1 {[%emt 0:00:33]} Qb1 {[%emt 0:03:56]} 30. Re1 {[%emt 0:00:15]} Qc2 {[%emt 0:00:44]} 31. Ng3 {[%emt 0:00:30]} Kg8 {[%emt 0:02:05]} 32. Rxf7 {[%emt 0:03:21]} Rxg3 {[%emt 0:03:55]} 33. hxg3 {[%emt 0:00:00]} Kxf7 {[%emt 0:00:48]} 34. Qf4 {[%emt 0:00:10]} Qxc3 {[%emt 0:01:41]} 35. Rc1 {[%emt 0:00:42]} Qe5 {[%emt 0:01:25]} 36. Qh4 {[%emt 0:00:25]} Kg8 {[%emt 0:02:09]} 37. Rxc5 {[%emt 0:00:31]} Be8 {[%emt 0:00:33]} 38. f4 {[%emt 0:00:34]} Qe7 {[%emt 0:00:31]} 39. g4 {[%emt 0:00:18]} Qxc5 {[%emt 0:00:19]} 0-1

[Event "27th OIBM 2024"]
[Site "Gmund am Tegernsee"]
[Date "2024.10.28"]
[Round "3.29"]
[White "Gernhuber, Darian"]
[Black "Graf, Christian"]
[Result "1/2-1/2"]
[ECO "B13"]
[WhiteElo "1886"]
[BlackElo "2050"]
[Annotator "RC"]
[PlyCount "37"]
[EventDate "2024.09.16"]
[EventType "swiss"]
[EventCountry "GER"]
[SourceTitle "playchess.com"]
[Source "ChessBase"]
[SourceQuality "1"]
[TimeControl "40/5400+30:1800+30"]

1. d4 {[%emt 0:00:03]} d5 {[%emt 0:00:16]} 2. Nc3 {[%emt 0:00:20]} Nf6 {[%emt 0:00:29]} 3. Bf4 {[%emt 0:00:13]} c5 {[%emt 0:00:42]} 4. e3 {[%emt 0:00:19]} cxd4 {[%emt 0:00:58]} 5. exd4 {[%emt 0:00:07]} Bg4 {[%emt 0:01:23]} 6. Be2 {[%emt 0:09:22]} Bxe2 {[%emt 0:01:41]} 7. Ngxe2 {[%emt 0:00:21]} Nc6 {[%emt 0:03:18]} 8. O-O {[%emt 0:01:35]} e6 {[%emt 0:00:44]} 9. a3 {[%emt 0:06:19]} Be7 {[%emt 0:01:39]} 10. Qd3 {[%emt 0:03:17]} O-O {[%emt 0:07:03]} 11. b4 {[%emt 0:03:09]} Rc8 {[%emt 0:04:58]} 12. Rfd1 {[%emt 0:05:47]} a5 {[%emt 0:13:27]} 13. b5 {[%emt 0:02:50]} Nb8 {[%emt 0:00:34]} 14. Na4 {[%emt 0:02:17]} Nbd7 {[%emt 0:03:55]} 15. Nec3 {[%emt 0:07:19]} Rc4 {[%emt 0:08:30]} 16. Nb2 {[%emt 0:00:42]} Rc8 {[%emt 0:01:08]} 17. Nba4 {[%emt 0:00:10]} Rc4 {[%emt 0:02:38]} 18. Nb2 {[%emt 0:01:01]} Rc8 {[%emt 0:00:07]} 19. Nba4 {[%emt 0:00:04]} 1/2-1/2

[Event "27th OIBM 2024"]
[Site "Gmund am Tegernsee"]
[Date "2024.10.28"]
[Round "3.31"]
[White "Pasti, Zsombor"]
[Black "Geist, Denis"]
[Result "1-0"]
[ECO "D32"]
[WhiteElo "2062"]
[BlackElo "1869"]
[Annotator "RC"]
[PlyCount "120"]
[EventDate "2024.09.16"]
[EventType "swiss"]
[EventCountry "GER"]
[SourceTitle "playchess.com"]
[Source "ChessBase"]
[SourceQuality "1"]
[TimeControl "40/5400+30:1800+30"]

1. d4 {[%emt 0:00:10]} d5 {[%emt 0:00:12]} 2. c4 {[%emt 0:00:05]} e6 {[%emt 0:00:24]} 3. Nc3 {[%emt 0:00:04]} c5 {[%emt 0:00:56]} 4. cxd5 {[%emt 0:01:32]} exd5 {[%emt 0:00:31]} 5. Nf3 {[%emt 0:04:16]} Nf6 {[%emt 0:00:52]} 6. Bg5 {[%emt 0:00:36]} Be6 {[%emt 0:04:45]} 7. e3 {[%emt 0:08:15]} c4 {[%emt 0:01:01]} 8. Be2 {[%emt 0:01:47]} Bb4 {[%emt 0:01:52]} 9. O-O {[%emt 0:00:19]} Nbd7 {[%emt 0:02:16]} 10. Ne5 {[%emt 0:06:32]} O-O {[%emt 0:00:42]} 11. f4 {[%emt 0:06:33]} Bxc3 {[%emt 0:13:51]} 12. bxc3 {[%emt 0:00:09]} Bf5 {[%emt 0:01:27]} 13. Bf3 {[%emt 0:04:53]} Qa5 {[%emt 0:07:19]} 14. Nxd7 {[%emt 0:02:53]} Nxd7 {[%emt 0:00:18]} 15. Bg4 {[%emt 0:02:51]} Bxg4 {[%emt 0:06:19]} 16. Qxg4 {[%emt 0:00:06]} f5 {[%emt 0:00:58]} 17. Qf3 {[%emt 0:00:04]} Rae8 {[%emt 0:11:47]} 18. Rab1 {[%emt 0:04:54]} Nb6 {[%emt 0:02:56]} 19. Rfc1 {[%emt 0:05:15]} Re4 {[%emt 0:03:24]} 20. Qg3 {[%emt 0:09:55]} Re6 {[%emt 0:07:14]} 21. Bh4 {[%emt 0:05:31]} Qa4 {[%emt 0:08:38]} 22. Qf3 {[%emt 0:01:39]} Qd7 {[%emt 0:01:56]} 23. Rb4 {[%emt 0:02:16]} a5 {[%emt 0:01:09]} 24. Rbb1 {[%emt 0:03:39]} Rfe8 {[%emt 0:01:16]} 25. Bf2 {[%emt 0:00:10]} Na4 {[%emt 0:02:12]} 26. Kh1 {[%emt 0:00:37]} Rg6 {[%emt 0:03:46]} 27. Be1 {[%emt 0:07:40]} b5 {[%emt 0:02:03]} 28. Qe2 {[%emt 0:02:45]} Rb6 {[%emt 0:02:39]} 29. Bd2 {[%emt 0:01:10]} Rc8 {[%emt 0:01:58]} 30. Rg1 {[%emt 0:06:37]} Rg6 {[%emt 0:02:14]} 31. h3 {[%emt 0:00:48]} b4 {[%emt 0:03:08]} 32. cxb4 {[%emt 0:01:45]} c3 {[%emt 0:00:03]} 33. Bc1 {[%emt 0:00:10]} c2 {[%emt 0:02:14]} 34. Rb3 {[%emt 0:00:12]} Rgc6 {[%emt 0:03:24]} 35. Qb5 {[%emt 0:00:36]} R6c7 {[%emt 0:00:51]} 36. Qxd7 {[%emt 0:01:41]} Rxd7 {[%emt 0:00:01]} 37. Bd2 {[%emt 0:00:21]} axb4 {[%emt 0:00:56]} 38. Rxb4 {[%emt 0:01:20]} Nc3 {[%emt 0:00:09]} 39. Bxc3 {[%emt 0:01:46]} Rxc3 {[%emt 0:00:02]} 40. Rc1 {[%emt 0:00:16]} Rdc7 {[%emt 0:01:26]} 41. Rb3 {[%emt 0:31:12]} Kf7 {[%emt 0:30:27]} 42. Kg1 {[%emt 0:00:09]} Rxb3 {[%emt 0:00:00]} 43. axb3 {[%emt 0:00:00]} Rc3 {[%emt 0:00:00]} 44. Kf2 {[%emt 0:00:00]} Ke6 {[%emt 0:00:00]} 45. Ke2 {[%emt 0:00:00]} Kd7 {[%emt 0:00:00]} 46. b4 {[%emt 0:00:00]} Kd6 {[%emt 0:00:00]} 47. b5 {[%emt 0:00:00]} Kd7 {[%emt 0:00:00]} 48. Kd2 {[%emt 0:00:00]} Rb3 {[%emt 0:00:00]} 49. Rxc2 {[%emt 0:00:00]} Rxb5 {[%emt 0:00:00]} 50. Ra2 {[%emt 0:00:00]} Rb7 {[%emt 0:00:00]} 51. Ke2 {[%emt 0:00:00]} Ke7 {[%emt 0:00:00]} 52. Ra5 {[%emt 0:00:00]} Rd7 {[%emt 0:00:00]} 53. Kf3 {[%emt 0:00:00]} g6 {[%emt 0:00:00]} 54. g4 {[%emt 0:00:00]} Kf7 {[%emt 0:00:00]} 55. Rb5 {[%emt 0:00:00]} Kg7 {[%emt 0:00:00]} 56. Kg3 {[%emt 0:00:00]} Kf7 {[%emt 0:00:16]} 57. gxf5 gxf5 {[%emt 0:00:04]} 58. Kh4 {[%emt 0:00:00]} Rd6 {[%emt 0:03:58]} 59. Kg5 {[%emt 0:00:00]} Ke6 {[%emt 0:00:53]} 60. Rb8 {[%emt 0:00:00]} Rd7 {[%emt 0:01:47]} 1-0